bitfinex/quotes_ETHUSD_20260130
["timestamp","ask_amount","ask_price","bid_price","bid_amount"]
[1769735609740,0.001,2810.1,2809.9,6.87120425]
[1769735612429,0.001,2810.1,2809.9,6.24645767]
[1769735612742,0.001,2810.1,2809.8,0.00100811]
[1769735618638,0.001,2810.3,2809.8,0.00300811]
[1769735618965,0.001,2810.3,2809.8,5.86336968]
[1769735620629,0.001,2810.3,2809.8,6.75308107]
[1769735620833,0.001,2810.3,2809.9,5.86036157]
[1769735622875,0.001,2810.4,2810.1,5.86036157]
[1769735623243,0.001,2810.9,2810.3,5.86036157]
[1769735623590,0.001,2811.1,2810.3,5.86036157]
[1769735624245,1.44765792,2812.5,2811.5,5.86036157]
[1769735624441,0.00099594,2812.4,2811.5,5.86036157]
[1769735624660,0.00099594,2812.4,2811.6,0.88917342]
[1769735624958,0.00099594,2812.4,2811.6,6.74953499]
[1769735625160,0.00099594,2812.4,2811.6,6.74853499]
[1769735625378,5.77189964,2812.4,2811.3,5.86036157]
[1769735625686,0.70338699,2812.3,2811.4,0.88823589]
[1769735626077,0.00099594,2812.2,2811.4,0.88823589]
[1769735626245,0.00099594,2812.2,2811.4,0.88723589]
[1769735626443,0.70338699,2812.3,2811.5,0.88920384]
[1769735626444,0.00099594,2812.1,2811.5,0.88920384]
[1769735626675,0.00099594,2812.1,2811.4,0.88923667]
[1769735626880,0.00099594,2812.0,2811.4,0.88923667]
[1769735627059,0.00099594,2812.2,2811.4,0.88923667]
[1769735627258,0.00099594,2812.2,2811.4,0.88823667]
[1769735627475,0.00099594,2812.1,2811.4,0.88823667]
[1769735627669,0.00099594,2812.1,2811.4,0.88723667]
[1769735627980,0.00099594,2812.0,2811.4,0.88723667]
[1769735628278,0.00099594,2812.0,2811.3,6.74961264]
[1769735628477,5.77189964,2812.0,2811.0,0.88935469]
[1769735628780,0.57718996,2811.9,2810.8,5.86036157]
[1769735628962,0.89005908,2812.0,2810.8,5.86036157]
[1769735631590,0.89005908,2812.0,2810.9,6.74975642]
[1769735632355,0.00099594,2812.0,2810.9,6.74975642]
[1769735633090,0.74599594,2812.0,2810.9,6.74975642]
[1769735633990,0.88907855,2811.9,2810.9,6.74975642]
[1769735634393,0.00099594,2811.8,2811.0,5.86036157]
[1769735634766,0.00099594,2811.7,2811.0,5.86036157]
[1769735634962,1.63403783,2812.1,2811.0,5.86036157]
[1769735635161,1.63503377,2812.1,2811.0,5.86036157]
[1769735635362,0.00099594,2812.0,2811.0,5.86036157]
[1769735635586,1.20638384,2812.0,2811.0,6.78911265]
[1769735635892,2.09543694,2812.0,2811.1,0.88933157]
[1769735636196,2.09543694,2812.0,2811.2,6.28520184]
[1769735637995,0.00099594,2811.9,2811.3,7.17447015]
[1769735638377,0.00099594,2811.8,2811.3,7.17447015]
[1769735638576,0.00099594,2812.0,2811.3,7.17447015]
[1769735638898,0.001,2811.8,2811.3,7.17447015]
[1769735639399,0.00099594,2811.7,2811.3,7.17447015]
[1769735639701,0.00099594,2811.7,2811.3,6.28520184]
[1769735639893,0.001,2811.8,2811.3,6.28520184]
[1769735640197,0.00099594,2811.7,2811.3,6.28520184]
[1769735640576,0.00099594,2811.7,2811.3,7.17445292]
[1769735643803,0.001,2811.8,2811.4,6.28520184]
[1769735644905,0.001,2811.8,2811.2,0.88927868]
[1769735645113,0.001,2811.8,2811.3,0.88926518]
[1769735645310,0.001,2811.8,2811.3,7.17446702]
[1769735649092,0.001,2811.8,2811.3,0.88926518]
[1769735649815,0.001,2811.8,2811.3,0.88926062]
[1769735651121,6.62994363,2811.8,2811.1,0.88930703]
[1769735651297,6.62994363,2811.8,2811.4,0.002]
[1769735652301,0.60372215,2811.8,2811.4,0.002]
[1769735653021,0.001,2811.8,2811.4,0.002]
[1769735656314,10.34865215,2812.5,2811.4,0.002]
[1769735656315,6.02622148,2812.4,2811.5,6.28520184]
[1769735656517,0.745,2812.3,2811.5,6.28520184]
[1769735657303,13.70821113,2812.5,2811.6,7.17437526]
[1769735657304,13.7081941,2812.5,2811.6,7.17437526]
[1769735657503,1.18545646,2812.4,2811.6,7.17437526]
[1769735657946,7.21167794,2812.4,2811.5,0.88918041]
[1769735658817,7.21167794,2812.4,2811.5,7.17438225]
[1769735659533,0.8889521,2812.3,2811.5,7.17438225]
[1769735659709,1.6339521,2812.3,2811.5,7.17438225]
[1769735659910,9.50512108,2812.3,2811.5,7.17438225]
[1769735660730,9.50512108,2812.3,2811.4,0.002]
[1769735660924,6.02622148,2812.2,2811.5,0.88920017]
[1769735661823,6.91522352,2812.2,2811.4,0.89123667]
[1769735663831,6.91522352,2812.2,2811.5,0.004]
[1769735664003,0.36053933,2812.1,2811.5,0.004]
[1769735664202,6.38676081,2812.1,2811.5,0.004]
[1769735664944,0.36053933,2812.1,2811.5,6.28920184]
[1769735665239,0.001,2812.1,2811.5,6.28920184]
[1769735667006,0.001,2812.1,2811.6,0.88917342]
[1769735667214,0.001,2812.1,2811.6,6.9891693]
[1769735672040,0.001,2812.1,2811.5,0.004]
[1769735672342,5.98015761,2812.1,2811.5,0.001]
[1769735672544,0.59801576,2812.0,2811.5,0.001]
[1769735676516,0.002,2812.1,2811.6,6.15434987]
[1769735676815,0.002,2812.1,2811.7,6.16233162]
[1769735677038,0.002,2812.1,2811.7,7.05146605]
[1769735677232,0.002,2812.1,2811.7,6.16233162]
[1769735677515,0.002,2812.1,2811.7,7.05146611]
[1769735677945,0.002,2812.1,2811.7,7.05146957]
[1769735678716,0.001,2811.9,2811.7,0.002]
[1769735679241,0.001,2811.9,2811.5,0.88918484]
[1769735682249,0.001,2811.9,2811.5,8.11e-06]
[1769735682650,6.85216316,2811.9,2811.5,8.11e-06]
[1769735683740,0.62401483,2811.9,2811.5,8.11e-06]
[1769735688673,7.11728001,2811.8,2811.0,0.002]
[1769735689363,7.11728001,2811.8,2811.3,0.001]
[1769735689526,0.77412948,2811.7,2811.3,0.001]
[1769735691048,0.001,2812.1,2811.7,6.16033162]
[1769735691351,7.68199333,2812.5,2811.7,6.16033162]
[1769735691559,0.001,2811.9,2811.7,6.16033162]
[1769735691869,0.001,2811.9,2811.7,7.40987838]
[1769735692466,0.001,2811.9,2811.7,6.16033162]
[1769735692772,6.79307983,2812.5,2811.7,6.16033162]
[1769735693071,8.42697652,2812.5,2811.7,7.04944229]
[1769735693376,0.001,2811.9,2811.7,6.16033162]
[1769735693744,0.001,2812.2,2811.6,0.002]
[1769735693940,0.001,2812.2,2811.5,0.88920097]
[1769735694142,0.001,2812.2,2811.4,9.36268035]
[1769735694351,0.001,2812.2,2811.4,9.715999]
[1769735694553,0.80602041,2812.2,2811.4,9.53935784]
[1769735694752,0.80602041,2812.2,2811.6,0.71317265]
[1769735694953,0.80602041,2812.2,2811.4,9.35980336]
[1769735695153,1.69502339,2812.2,2811.4,6.69207941]
[1769735695480,1.69502339,2812.2,2811.6,0.001]
[1769735695776,6.96959111,2812.1,2811.2,0.88928254]
[1769735695947,6.96959111,2812.1,2811.3,0.88926781]
[1769735696149,6.96959111,2812.1,2811.1,9.59640998]
[1769735696348,6.96959111,2812.1,2811.6,0.001]
[1769735696571,0.86646145,2812.0,2811.6,0.001]
[1769735696783,6.15014782,2811.9,2811.0,0.88936221]
[1769735696986,6.15014782,2811.9,2811.0,0.88936313]
[1769735697277,6.15014782,2811.7,2811.6,0.001]
[1769735698275,6.89514782,2811.7,2811.6,0.001]
[1769735698582,6.15014782,2811.6,2810.7,0.88583523]
[1769735699190,7.03935287,2811.5,2810.7,0.88583523]
[1769735699479,7.03735287,2811.5,2810.7,0.88583523]
[1769735699975,7.03535287,2811.5,2810.7,0.88583523]
[1769735700275,8.28046169,2811.5,2810.7,0.88583523]
[1769735700847,6.15014782,2811.4,2810.5,0.88950438]
[1769735701156,6.15014782,2811.2,2810.4,3.55820428]
[1769735701351,7.20778505,2811.2,2810.4,3.55820428]
[1769735701663,1.05963723,2811.2,2810.4,9.95222651]
[1769735701874,7.03940701,2811.4,2810.4,9.95222651]
[1769735703566,7.03940701,2811.4,2810.5,6.39402223]
[1769735704575,6.15014782,2811.4,2810.5,6.39402223]
[1769735704887,3.5563281,2811.9,2810.4,9.8933403]
[1769735704888,0.88902972,2812.1,2811.1,6.39402223]
[1769735705051,7.78615583,2812.2,2811.1,6.39402223]
[1769735705257,1.68731305,2812.1,2811.2,7.66693806]
[1769735705799,2.57634687,2812.1,2811.3,0.88926831]
[1769735706479,2.43231305,2812.1,2811.3,7.28329054]
[1769735706663,0.89098404,2812.2,2811.3,7.28329054]
[1769735706857,7.04113186,2812.2,2811.3,0.88926831]
[1769735707769,7.78613186,2812.2,2811.3,0.88926831]
[1769735709990,6.89714782,2812.2,2811.3,7.28329054]
[1769735710158,7.78613727,2812.2,2811.4,1.04232678]
[1769735712291,7.78613727,2812.2,2811.4,1.9315493]
[1769735712798,7.04113727,2812.2,2811.4,8.32557153]
[1769735713092,0.745,2812.1,2811.4,8.32557153]
[1769735713290,0.001,2812.0,2811.4,8.32557153]
[1769735714102,0.001,2812.0,2811.4,1.9315493]
[1769735714608,0.001,2812.0,2811.4,1.93155108]
[1769735714978,0.001,2812.0,2811.4,1.93155622]
[1769735715393,0.001,2812.0,2811.5,6.39402223]
[1769735715591,0.001,2812.0,2811.5,7.22658008]
[1769735716369,0.002,2812.2,2811.6,6.39402223]
[1769735716574,0.002,2812.2,2811.7,7.28316403]
[1769735718370,0.37307983,2812.5,2811.8,6.39402223]
[1769735718566,0.37307983,2812.5,2812.0,0.88904694]
[1769735719206,0.37307983,2812.5,2812.0,7.28306917]
[1769735723710,6.15014782,2813.3,2812.3,6.39402223]
[1769735723912,7.30862167,2813.4,2812.6,6.39402223]
[1769735724120,14.54506165,2813.4,2812.6,6.39402223]
[1769735724290,6.15014782,2813.3,2812.5,6.33513602]
[1769735724930,0.002,2812.5,2812.4,6.39402223]
[1769735725104,7.03881552,2813.2,2812.4,7.28294272]
[1769735725305,0.70388155,2813.1,2812.4,7.28294272]
[1769735725885,0.002,2812.5,2812.4,7.28294272]
[1769735726088,7.03881552,2813.2,2812.4,7.28294272]
[1769735726491,7.03881552,2813.2,2812.4,6.39402223]
[1769735726691,7.03881552,2813.2,2812.2,0.71297961]
[1769735726922,0.002,2812.5,2812.1,3.3790488]
[1769735727192,0.002,2812.5,2811.8,6.93859038]
[1769735727817,0.002,2812.5,2811.9,0.002]
[1769735733649,0.002,2812.5,2811.9,6.22511933]
[1769735733805,0.002,2812.5,2811.9,7.27483392]
[1769735735644,0.002,2812.5,2812.0,7.15635376]
[1769735735843,6.59892564,2813.1,2812.1,6.26730682]
[1769735736148,7.48758455,2813.3,2812.2,6.26730682]
[1769735736329,1.85482966,2813.2,2812.2,6.70027699]
[1769735736753,0.002,2812.5,2812.2,6.70027699]
[1769735737040,8.4537553,2813.2,2812.3,6.26730682]
[1769735737906,0.002,2812.5,2812.4,0.88892049]
[1769735738099,9.34243606,2813.2,2812.4,0.88892049]
[1769735738302,7.53316925,2813.1,2812.4,0.88892049]
[1769735738935,0.002,2812.8,2812.4,0.88892049]
[1769735739940,0.002,2812.8,2812.4,7.15622731]
[1769735740139,0.002,2812.8,2812.4,0.88892049]
[1769735740557,6.60092564,2812.8,2812.3,0.88893038]
[1769735740849,0.66209256,2812.8,2812.3,0.88893038]
[1769735741009,0.002,2812.8,2812.3,0.88893038]
[1769735743071,0.002,2812.8,2812.2,3.55791094]
[1769735745435,0.002,2812.8,2812.2,9.82521776]
[1769735745926,0.002,2812.8,2812.2,3.55791094]
[1769735747952,6.60092564,2812.8,2812.2,0.89098371]
[1769735748128,6.59892564,2812.6,2812.2,0.89098371]
[1769735748329,0.66009256,2812.7,2812.2,0.89098371]
[1769735748524,0.002,2812.8,2812.2,7.15829053]
[1769735749466,6.42,2813.4,2812.3,6.26730682]
[1769735749666,6.59892564,2813.7,2812.5,6.26730682]
[1769735749667,7.48745547,2813.7,2812.5,6.26730682]
[1769735749978,7.77757024,2813.6,2812.6,7.52736247]
[1769735750461,0.001,2812.8,2812.6,7.52736247]
[1769735750667,6.59892564,2813.5,2812.6,7.52736247]
[1769735751365,6.59892564,2813.8,2812.6,7.52736247]
[1769735751526,6.59892564,2813.8,2812.8,7.1551009]
[1769735751961,7.48740915,2813.8,2812.8,7.1551009]
[1769735752255,6.59892564,2813.8,2812.8,7.1551009]
[1769735752459,6.59892564,2813.8,2812.8,7.1541009]
[1769735752827,6.59892564,2813.8,2812.8,7.1531009]
[1769735753072,6.59892564,2813.8,2812.9,7.82981318]
[1769735753433,6.59892564,2813.8,2812.9,7.82881318]
[1769735753634,6.59892564,2813.8,2813.0,0.88873089]
[1769735753833,0.745,2814.0,2813.0,7.15603771]
[1769735753834,0.001,2813.1,2813.0,7.15603771]
[1769735754076,7.48736405,2814.0,2813.1,6.26730682]
[1769735754230,6.59892564,2813.9,2813.1,6.26730682]
[1769735754447,6.59892564,2813.9,2813.1,6.26630682]
[1769735754964,2.0670319,2814.0,2813.1,6.26530682]
[1769735755361,2.0670319,2814.0,2813.1,6.26430682]
[1769735755675,2.0670319,2814.0,2813.2,0.8886677]
[1769735755839,6.62525667,2813.9,2813.1,7.1519879]
[1769735756242,6.62525667,2813.9,2813.1,7.1509879]
[1769735756979,6.62525667,2814.1,2813.1,7.1499879]
[1769735757165,7.80644877,2814.1,2813.2,7.08163249]
[1769735757476,7.80644877,2814.1,2813.2,7.08063249]
[1769735757670,8.6948343,2814.1,2813.3,0.88863612]
[1769735757877,8.69483242,2814.1,2813.3,0.88763612]
[1769735758048,7.80644877,2814.1,2813.3,0.88763612]
[1769735758247,8.69483483,2814.1,2813.3,0.88763612]
[1769735758668,7.80644877,2814.1,2813.3,0.88763612]
[1769735758863,6.62525667,2814.0,2813.3,0.88763612]
[1769735759069,7.49474021,2814.0,2813.3,0.88763612]
[1769735759788,7.49474021,2814.0,2813.1,6.32889624]
[1769735760020,1.75790941,2814.0,2812.8,3.55515173]
[1769735760159,7.08052007,2813.9,2812.8,0.88879408]
[1769735760363,6.62525667,2813.7,2812.8,0.88879408]
[1769735760677,7.51366033,2814.1,2813.0,6.32889624]
[1769735760848,7.51366033,2814.1,2812.8,7.21769032]
[1769735761244,8.25866033,2814.1,2812.8,7.21769032]
[1769735761445,8.25866033,2814.1,2812.8,7.21969032]
[1769735761847,6.62625667,2813.9,2813.0,6.32889624]
[1769735762151,6.62625667,2813.9,2812.8,0.89079408]
[1769735762351,6.62625667,2813.9,2812.8,7.21969032]
[1769735763754,7.51471252,2813.9,2812.8,7.21969032]
[1769735764290,7.51471252,2813.9,2812.8,0.89079408]
[1769735764584,6.62525667,2813.7,2812.8,0.89079408]
[1769735767355,7.51378273,2813.7,2812.8,0.002]
[1769735772710,6.62525667,2813.5,2812.8,0.002]
[1769735773310,1.22495821,2813.8,2812.8,0.002]
[1769735773480,6.62525667,2813.7,2812.8,6.33089624]
[1769735773916,6.62525667,2813.7,2812.8,0.002]
[1769735774782,7.51379371,2813.7,2812.8,0.002]
[1769735775493,7.51379371,2813.7,2813.0,0.002]
[1769735778220,7.51379371,2813.7,2812.8,0.002]
[1769735778421,6.62525667,2813.5,2812.8,0.002]
[1769735780195,6.62525667,2813.3,2812.8,0.002]
[1769735781625,6.62525667,2813.3,2813.0,0.002]
[1769735782634,1.63362234,2813.4,2812.8,0.002]
[1769735782802,2.92562914,2813.4,2812.8,0.002]
[1769735783001,2.92562914,2813.4,2813.0,0.002]
[1769735783526,2.92562914,2813.4,2812.8,0.002]
[1769735783829,9.55088581,2813.4,2812.8,0.002]
[1769735784333,8.80588581,2813.4,2812.8,0.002]
[1769735784625,1.2360302,2813.3,2812.8,0.002]
[1769735787122,2.12466962,2813.3,2812.8,0.002]
[1769735787626,7.51544974,2813.3,2812.8,0.002]
[1769735788336,7.51544974,2813.3,2813.0,0.002]
[1769735788504,0.001,2813.1,2813.0,0.002]
[1769735788705,6.62781032,2813.1,2812.8,6.08e-06]
[1769735789128,6.62781032,2813.1,2812.7,0.002]
[1769735789129,6.62681032,2812.9,2812.1,0.89099226]
[1769735789323,6.62681032,2812.7,2812.1,0.89099226]
[1769735789535,6.62481032,2812.7,2812.1,0.89099226]
[1769735789705,0.75155412,2812.8,2812.1,7.52758373]
[1769735790036,0.001,2813.1,2812.7,0.002]
[1769735790336,0.001,2813.1,2812.7,6.63859147]
[1769735791222,0.001,2813.1,2812.8,0.88879408]
[1769735792035,0.001,2813.1,2812.7,7.5273957]
[1769735792734,6.42,2813.6,2812.8,6.63659147]
[1769735793335,6.42,2813.6,2812.9,7.52535395]
[1769735793535,7.30854602,2813.6,2812.9,7.52535395]
[1769735795507,6.42,2813.6,2812.9,7.52535395]
[1769735795713,7.51532237,2813.7,2812.9,7.52535395]
[1769735796115,6.62681032,2813.7,2812.9,7.52535395]
[1769735796315,7.51532505,2813.7,2812.9,7.52535395]
[1769735796843,6.62681032,2813.7,2812.9,8.09699306]
[1769735797010,0.88848726,2813.8,2812.9,8.09699306]
[1769735797405,0.001,2813.3,2812.9,8.09699306]
[1769735798640,0.001,2813.4,2812.9,8.09699306]
[1769735799148,0.001,2813.4,2813.0,8.08212932]
[1769735799947,0.001,2813.4,2813.1,7.80541296]
[1769735800332,0.001,2813.9,2813.2,6.91671367]
[1769735800516,0.001,2813.9,2813.1,0.88869929]
[1769735800517,8.07930493,2813.9,2813.1,0.88869929]
[1769735800716,8.07930493,2813.9,2813.2,0.57618785]
[1769735800917,8.07930493,2813.9,2813.0,2.05612292]
[1769735801119,0.001,2813.2,2813.0,0.89070727]
[1769735802035,0.001,2813.2,2813.0,0.002]
[1769735802625,0.88844929,2813.9,2813.0,6.91871367]
[1769735803169,0.001,2813.4,2813.0,6.91871367]
[1769735803352,0.001,2813.4,2813.2,6.91671367]
[1769735803754,0.001,2813.4,2813.1,7.96408889]
[1769735804058,0.001,2813.4,2813.2,0.8886677]
[1769735804958,0.88839904,2814.1,2813.2,7.80538137]
[1769735805155,8.07824907,2814.1,2813.2,7.80538137]
[1769735805459,8.07824907,2814.1,2813.2,9.0463353]
[1769735805618,0.001,2813.4,2813.2,9.0463353]
[1769735806324,0.88839904,2814.1,2813.3,6.91671367]
[1769735806523,8.07822659,2814.2,2813.3,6.91671367]
[1769735807149,0.001,2813.4,2813.3,6.91671367]
[1769735807351,7.18985003,2814.1,2813.3,7.98900235]
[1769735808073,0.001,2813.4,2813.3,7.98900235]
[1769735808541,0.001,2813.4,2813.3,8.87763847]
[1769735808737,7.18985003,2814.1,2813.3,8.87763847]
[1769735809442,8.07823756,2814.1,2813.3,8.87763847]
[1769735809638,7.18985003,2814.1,2813.3,8.87763847]
[1769735809964,8.07823647,2814.1,2813.3,8.87763847]
[1769735810166,9.24138967,2814.1,2813.3,8.87763847]
[1769735810541,8.35300323,2814.1,2813.3,8.87763847]
[1769735811374,7.18985003,2814.0,2813.3,1.9609248]
[1769735812472,8.07826791,2814.0,2813.0,0.002]
[1769735812673,8.07826791,2814.0,2813.1,0.88867506]
[1769735813191,8.07826791,2814.0,2813.0,0.8907129]
[1769735813775,8.07826791,2814.0,2813.1,0.88869805]
[1769735814157,8.07826791,2814.0,2813.1,0.888683]
[1769735814354,7.18985003,2813.8,2813.1,0.888683]
[1769735814563,7.18985003,2813.8,2813.0,0.002]
[1769735815253,8.07832888,2813.8,2813.0,0.002]
[1769735815881,7.18985003,2813.8,2813.0,0.002]
[1769735816099,8.07834107,2813.8,2813.0,0.002]
[1769735816384,6.70464894,2813.6,2813.0,0.002]
[1769735820405,7.59319354,2813.6,2813.0,0.002]
[1769735821190,7.59319354,2813.6,2812.1,0.89098778]
[1769735821191,6.70464894,2813.3,2812.1,0.89098778]
[1769735821374,6.70464894,2813.3,2812.1,0.002]
[1769735821583,6.70464894,2813.0,2812.1,0.002]
[1769735822180,6.70464894,2812.8,2812.1,0.002]
[1769735824261,6.70464894,2812.6,2812.1,0.002]
[1769735824896,6.70464894,2812.8,2812.1,0.002]
[1769735825194,7.59343224,2812.9,2812.1,7.05000577]
[1769735825397,0.75678891,2812.8,2812.1,0.002]
[1769735826398,0.75678891,2812.8,2812.3,0.002]
[1769735826572,1.64558329,2812.8,2812.3,0.002]
[1769735826974,0.75678891,2812.8,2812.3,0.002]
[1769735827397,6.70464894,2812.7,2812.1,0.002]
[1769735827595,7.53967144,2812.7,2812.1,0.002]
[1769735829209,7.53967144,2812.7,2811.9,0.002]
[1769735829210,7.59350622,2812.6,2811.9,0.002]
[1769735832293,7.59550622,2812.6,2812.0,0.002]
[1769735832494,1.19858677,2812.5,2812.0,0.002]
[1769735834930,0.89085728,2812.6,2812.0,0.002]
[1769735835317,7.59550622,2812.6,2812.0,0.002]
[1769735836291,7.59551268,2812.6,2812.0,0.002]
[1769735836692,7.59550693,2812.6,2812.0,0.002]
[1769735836894,7.5955156,2812.6,2812.0,0.002]
[1769735837231,8.86859056,2812.6,2812.0,0.002]
[1769735838525,7.59355982,2812.5,2812.0,0.002]
[1769735838750,6.70464894,2812.5,2812.0,0.002]
[1769735839060,2.16395373,2812.6,2812.2,0.002]
[1769735839422,2.16495373,2812.6,2812.2,0.002]
[1769735839617,1.04496252,2812.5,2812.2,0.002]
[1769735839927,6.70464894,2812.4,2811.9,0.002]
[1769735840331,6.70464894,2812.4,2812.0,0.002]
[1769735840527,0.8889521,2812.3,2812.0,0.002]
[1769735840750,1.75280846,2812.3,2812.0,0.002]
[1769735841570,0.86385636,2812.3,2812.0,0.002]
[1769735843347,0.86585636,2812.3,2811.9,0.002]
[1769735843666,1.75480996,2812.3,2811.9,0.002]
[1769735843870,6.70464894,2812.2,2811.9,0.002]
[1769735844068,0.84594589,2812.1,2811.9,0.002]
[1769735845855,0.86585636,2812.3,2811.9,0.002]
[1769735847045,0.002,2812.3,2811.9,0.002]
[1769735848667,0.001,2812.6,2812.0,7.14790087]
[1769735849255,0.002,2812.3,2812.0,7.14790087]
[1769735849779,0.002,2812.3,2812.1,8.03691619]
[1769735849983,0.001,2812.6,2812.2,8.30719913]
[1769735850952,6.96229228,2812.6,2811.9,0.8910559]
[1769735851153,0.001,2812.1,2812.0,0.88904694]
[1769735851360,0.001,2812.6,2812.0,0.88904694]
[1769735851756,0.001,2812.6,2811.9,3.55831264]
[1769735852081,0.001,2812.6,2811.9,0.89107855]
[1769735852401,0.7861105,2812.6,2811.9,0.89107855]
[1769735852693,0.7861105,2812.6,2811.9,8.03897942]
[1769735852855,0.001,2812.6,2811.9,8.03897942]
[1769735854556,6.60308485,2812.6,2811.9,0.89107855]
[1769735856156,7.49194532,2812.6,2811.9,0.89107855]
[1769735856360,6.60308485,2812.6,2811.9,0.89107855]
[1769735857462,6.60208485,2812.5,2811.9,0.002]
[1769735857676,1.10571205,2812.6,2811.9,0.89107855]
[1769735857891,0.001,2812.6,2811.9,0.89107855]
[1769735859810,0.001,2812.6,2811.9,7.79500157]
[1769735862908,0.001,2812.6,2812.1,0.002]
[1769735863107,6.60308485,2812.6,2812.1,0.002]
[1769735863440,0.001,2812.4,2812.1,0.002]
[1769735866827,6.60308485,2812.4,2811.7,0.002]
[1769735867142,6.60208485,2812.2,2811.7,0.002]
[1769735868402,7.49107115,2812.2,2811.6,0.002]
[1769735873252,6.60208485,2812.2,2811.6,0.002]
[1769735873543,0.002,2812.0,2811.6,0.002]
[1769735874339,1.10690704,2812.0,2811.6,0.002]
[1769735874650,7.70899189,2812.0,2811.6,0.002]
[1769735876047,6.71226341,2811.9,2811.6,0.002]
[1769735878023,7.60134886,2811.9,2811.6,0.002]
[1769735879549,7.60134886,2811.9,2811.4,0.002]
[1769735879759,6.71226341,2811.7,2810.9,0.002]
[1769735880168,6.71226341,2811.5,2810.9,0.002]
[1769735880455,6.71226341,2811.5,2810.9,0.00100203]
[1769735880662,6.71226341,2811.5,2810.2,7.3347069]
[1769735880817,6.71026341,2811.3,2810.2,8.22432074]
[1769735881253,6.71026341,2811.3,2810.1,0.002]
[1769735881441,6.71226341,2811.2,2810.1,0.002]
[1769735881626,6.71226341,2811.0,2810.1,0.89164573]
[1769735881833,6.71226341,2811.5,2811.4,0.001]
[1769735882033,0.745,2811.2,2810.3,8.22427725]
[1769735882233,8.34658279,2811.2,2810.3,8.22427725]
[1769735882451,8.34458279,2811.2,2810.3,8.22427725]
[1769735882754,7.60156593,2811.2,2810.3,8.22427725]
[1769735882941,8.7909176,2811.2,2810.3,10.03609808]
[1769735883151,7.90161508,2811.2,2810.3,10.03609808]
[1769735883344,8.78991557,2811.2,2810.3,10.03609808]
[1769735883544,8.78992195,2811.2,2810.3,10.03609808]
[1769735883744,8.78991821,2811.2,2810.3,10.03609808]
[1769735883943,8.78891821,2811.2,2810.3,10.03609808]
[1769735884143,7.89961508,2811.2,2810.3,10.03609808]
[1769735884350,8.78791544,2811.2,2810.3,10.03609808]
[1769735885036,8.78691544,2811.2,2810.3,10.03609808]
[1769735885231,7.89761508,2811.2,2810.3,10.02359808]
[1769735885556,8.78591544,2811.2,2810.4,7.83612868]
[1769735885856,8.78491544,2811.2,2810.4,7.83612868]
[1769735886160,7.89561508,2811.2,2810.4,7.83612868]
[1769735886358,7.6005253,2811.4,2810.5,8.22422833]
[1769735886843,7.5995253,2811.4,2810.5,8.22422833]
[1769735887857,7.5985253,2811.4,2810.6,0.002]
[1769735888444,7.5985253,2811.4,2811.1,0.001]
[1769735888761,7.872265,2811.3,2811.1,0.001]
[1769735890873,6.71226341,2811.3,2811.1,0.001]
[1769735891076,0.88924293,2811.4,2811.1,0.001]
[1769735891245,7.60150634,2811.4,2811.1,0.001]
[1769735895283,0.44458671,2811.5,2811.1,0.001]
[1769735895451,1.18958671,2811.5,2811.1,0.001]
[1769735895641,1.63420694,2811.5,2811.1,0.001]
[1769735895971,8.34647035,2811.5,2811.1,0.001]
[1769735896755,7.60147035,2811.5,2811.1,0.001]
[1769735896970,8.34647035,2811.5,2811.1,0.001]
[1769735902094,8.34647035,2811.5,2810.6,0.002]
[1769735902278,6.71226341,2811.3,2810.6,0.002]
[1769735902687,6.71226341,2811.3,2811.1,0.001]
[1769735902888,6.71226341,2811.3,2810.6,0.002]
[1769735903463,6.71226341,2811.3,2810.8,0.001]
[1769735904271,0.88929994,2811.2,2810.8,0.001]
[1769735904502,2.12438744,2811.2,2810.8,0.001]
[1769735905804,6.98366008,2811.1,2810.8,0.001]
[1769735906172,0.88936321,2811.0,2810.8,0.001]
[1769735906373,7.87301195,2811.1,2810.8,0.001]
[1769735908410,7.87301195,2811.1,2810.6,0.002]
[1769735908622,6.98366008,2810.9,2810.6,0.002]
[1769735908992,6.98366008,2810.9,2810.8,0.001]
[1769735909205,6.98366008,2810.9,2810.6,0.002]
[1769735909405,0.745,2810.8,2810.6,0.002]
[1769735910607,1.63444686,2810.8,2810.6,0.002]
[1769735910802,1.21757745,2810.7,2810.6,0.002]
[1769735912300,8.20123753,2810.7,2810.6,0.001]
[1769735912499,8.20123753,2810.7,2810.4,0.00100811]
[1769735912921,0.88948978,2810.6,2810.4,0.00100811]
[1769735913124,0.90907273,2810.5,2810.4,0.00100811]
[1769735913532,7.89273281,2810.5,2810.0,0.002]
[1769735914809,0.90907273,2810.5,2810.0,0.002]
[1769735915012,0.88955308,2810.4,2810.0,0.002]
[1769735916240,1.79859526,2810.5,2810.0,7.26071472]
[1769735917311,7.48974404,2810.4,2809.8,0.00100811]
[1769735919408,7.23528451,2810.2,2809.8,0.00100811]
[1769735921940,7.23528451,2810.0,2809.6,0.002]
[1769735922145,1.55849326,2809.9,2809.6,0.002]
[1769735922655,8.79377777,2809.9,2809.6,0.002]
[1769735923534,8.79377777,2809.9,2809.0,7.25871472]
[1769735923535,7.23528451,2809.3,2808.1,7.26071472]
[1769735923733,0.1857,2808.6,2808.1,0.00101825]
[1769735923946,0.89015488,2808.5,2808.1,0.00101825]
[1769735924166,0.89015488,2808.5,2807.8,0.002]
[1769735924340,8.12543939,2808.5,2807.8,0.002]
[1769735924532,8.12543939,2808.5,2806.2,15.56904041]
[1769735924533,7.23528451,2808.0,2806.9,7.25871472]
[1769735924734,6.34338813,2808.1,2806.4,8.14953556]
[1769735924735,7.23528451,2807.8,2806.4,8.14953556]
[1769735925524,7.23528451,2808.1,2806.9,6.34338813]
[1769735925726,0.746,2808.0,2807.0,7.89305353]
[1769735925933,1.63633455,2808.0,2807.2,7.25871472]
[1769735926153,0.746,2808.0,2807.2,7.25871472]
[1769735926364,1.63631378,2808.0,2807.0,8.78367617]
[1769735926529,0.746,2808.0,2807.0,8.78367617]
[1769735926725,1.63632454,2808.0,2807.1,1.23463166]
[1769735926933,8.87160905,2808.0,2807.1,1.23463166]
[1769735927129,8.87160905,2808.0,2807.0,8.78366115]
[1769735927354,8.87160905,2808.0,2807.0,8.14932234]
[1769735927559,8.87160905,2808.0,2806.9,0.8906437]